[Event "*** Titled Tuesday Blitz"]
[Site "Chess.com"]
[Date "2020.04.07"]
[Round "2"]
[White "Alliswell998"]
[Black "ValentinDragnev"]
[Result "1-0"]
[WhiteElo "2528"]
[BlackElo "2726"]
[TimeControl "180+1"]
[EndTime "13:20:04 PDT"]
[Termination "Alliswell998 won by checkmate"]

1. d4 {[%clk 0:03:00.9]} 1... Nf6 {[%clk 0:02:58.8]} 2. Bg5 {[%clk 0:03:01.1]}
2... Ne4 {[%clk 0:02:55]} 3. Bf4 {[%clk 0:03:00.6]} 3... d5 {[%clk 0:02:53.6]}
4. f3 {[%clk 0:03:00.9]} 4... g5 {[%clk 0:02:51.1]} 5. Bc1 {[%clk 0:02:51.5]}
5... Nf6 {[%clk 0:02:50.5]} 6. Bxg5 {[%clk 0:02:50.3]} 6... Bg7 {[%clk
0:02:51.1]} 7. Nc3 {[%clk 0:02:49.9]} 7... c5 {[%clk 0:02:50.6]} 8. e3 {[%clk
0:02:47.4]} 8... Nc6 {[%clk 0:02:50.8]} 9. Nge2 {[%clk 0:02:45.3]} 9... Rg8
{[%clk 0:02:46.6]} 10. Qd2 {[%clk 0:02:42.7]} 10... Bf5 {[%clk 0:02:34.5]} 11.
dxc5 {[%clk 0:02:39.9]} 11... Bh8 {[%clk 0:02:14]} 12. Bxf6 {[%clk 0:02:33]}
12... Bxf6 {[%clk 0:02:13.3]} 13. Nd4 {[%clk 0:02:28.4]} 13... Nxd4 {[%clk
0:01:51.2]} 14. exd4 {[%clk 0:02:29.3]} 14... e6 {[%clk 0:01:51]} 15. Bb5+
{[%clk 0:02:28.1]} 15... Kf8 {[%clk 0:01:48.8]} 16. O-O-O {[%clk 0:02:28.4]}
16... Qc7 {[%clk 0:01:47.2]} 17. Kb1 {[%clk 0:02:22.4]} 17... b6 {[%clk
0:01:45.1]} 18. c6 {[%clk 0:02:09.3]} 18... Bg6 {[%clk 0:01:26.8]} 19. h4 {[%clk
0:01:59.2]} 19... a6 {[%clk 0:01:26.1]} 20. Be2 {[%clk 0:01:56.6]} 20... h5
{[%clk 0:01:16.7]} 21. g4 {[%clk 0:01:56.2]} 21... Qxc6 {[%clk 0:01:10.9]} 22.
f4 {[%clk 0:01:50.4]} 22... hxg4 {[%clk 0:00:57.2]} 23. Bxg4 {[%clk 0:01:51.3]}
23... Ke7 {[%clk 0:00:56.8]} 24. f5 {[%clk 0:01:49.3]} 24... Bh7 {[%clk
0:00:56.6]} 25. Bh3 {[%clk 0:01:45.6]} 25... Rg3 {[%clk 0:00:48.7]} 26. fxe6
{[%clk 0:01:43.5]} 26... fxe6 {[%clk 0:00:44.8]} 27. Qh6 {[%clk 0:01:41.7]}
27... Rh8 {[%clk 0:00:42.9]} 28. Qd2 {[%clk 0:01:19]} 28... Bg8 {[%clk
0:00:42.9]} 29. Rde1 {[%clk 0:01:12.7]} 29... Rxh4 {[%clk 0:00:41.6]} 30. Bg2
{[%clk 0:01:04.6]} 30... Rxh1 {[%clk 0:00:41.5]} 31. Bxh1 {[%clk 0:01:05.5]}
31... Kd7 {[%clk 0:00:37]} 32. Qf4 {[%clk 0:00:58.1]} 32... Rg6 {[%clk
0:00:26.3]} 33. Bxd5 {[%clk 0:00:53.4]} 33... Qd6 {[%clk 0:00:21.8]} 34. Qf1
{[%clk 0:00:42.8]} 34... Bh4 {[%clk 0:00:19.7]} 35. Be4 {[%clk 0:00:35.8]} 35...
Rf6 {[%clk 0:00:17.6]} 36. Qg2 {[%clk 0:00:26.1]} 36... Bxe1 {[%clk 0:00:17]}
37. Qg7+ {[%clk 0:00:21.3]} 37... Qe7 {[%clk 0:00:13.5]} 38. Qxg8 {[%clk
0:00:21.4]} 38... Bxc3 {[%clk 0:00:13.8]} 39. bxc3 {[%clk 0:00:20.6]} 39... Rf1+
{[%clk 0:00:13.7]} 40. Kb2 {[%clk 0:00:20.8]} 40... Rf8 {[%clk 0:00:11.6]} 41.
Qg3 {[%clk 0:00:20.2]} 41... Qd6 {[%clk 0:00:10.4]} 42. Qd3 {[%clk 0:00:20.8]}
42... b5 {[%clk 0:00:09.6]} 43. d5 {[%clk 0:00:18.5]} 43... e5 {[%clk 0:00:09]}
44. Qe3 {[%clk 0:00:18.2]} 44... Qc7 {[%clk 0:00:07.2]} 45. Bg2 {[%clk 0:00:16]}
45... Kd6 {[%clk 0:00:04.2]} 46. Qh6+ {[%clk 0:00:15.2]} 46... Ke7 {[%clk
0:00:04.4]} 47. Bh3 {[%clk 0:00:13.9]} 47... Rf6 {[%clk 0:00:04.2]} 48. Qg7+
{[%clk 0:00:13.8]} 48... Rf7 {[%clk 0:00:04.6]} 49. Qg5+ {[%clk 0:00:13.5]}
49... Kd6 {[%clk 0:00:04.1]} 50. Qg6+ {[%clk 0:00:13]} 50... Ke7 {[%clk
0:00:04.4]} 51. Qe6+ {[%clk 0:00:13]} 51... Kf8 {[%clk 0:00:04.7]} 52. Qh6+
{[%clk 0:00:13.4]} 52... Ke8 {[%clk 0:00:04.1]} 53. Qe6+ {[%clk 0:00:12.6]}
53... Qe7 {[%clk 0:00:04.1]} 54. Qc8+ {[%clk 0:00:12.8]} 54... Qd8 {[%clk
0:00:04.3]} 55. Qe6+ {[%clk 0:00:12.3]} 55... Qe7 {[%clk 0:00:04.7]} 56. Qxa6
{[%clk 0:00:08.9]} 56... b4 {[%clk 0:00:04.5]} 57. Qc8+ {[%clk 0:00:07.6]} 57...
Qd8 {[%clk 0:00:04.8]} 58. Qe6+ {[%clk 0:00:07.3]} 58... Re7 {[%clk 0:00:05.2]}
59. Qg8# {[%clk 0:00:06.2]} 1-0

[Event "*** Titled Tuesday Blitz"]
[Site "Chess.com"]
[Date "2020.04.07"]
[Round "2"]
[White "LivajaM"]
[Black "Vugar_Manafov"]
[Result "0-1"]
[WhiteElo "2311"]
[BlackElo "2674"]
[TimeControl "180+1"]
[EndTime "13:20:04 PDT"]
[Termination "Vugar_Manafov won by checkmate"]

1. d4 {[%clk 0:03:00.9]} 1... Nf6 {[%clk 0:02:59.4]} 2. Bg5 {[%clk 0:03:00.1]}
2... d5 {[%clk 0:02:57.6]} 3. Nf3 {[%clk 0:02:58.3]} 3... Ne4 {[%clk 0:02:56.5]}
4. Bf4 {[%clk 0:02:57.8]} 4... c5 {[%clk 0:02:54.2]} 5. c3 {[%clk 0:02:58.1]}
5... Qb6 {[%clk 0:02:53.1]} 6. Qb3 {[%clk 0:02:55.2]} 6... c4 {[%clk 0:02:52.4]}
7. Qc2 {[%clk 0:02:53.7]} 7... Bf5 {[%clk 0:02:50.7]} 8. Qc1 {[%clk 0:02:53.9]}
8... Nc6 {[%clk 0:02:49.4]} 9. e3 {[%clk 0:02:51.1]} 9... e6 {[%clk 0:02:49.1]}
10. Nbd2 {[%clk 0:02:48.4]} 10... h6 {[%clk 0:02:48]} 11. h3 {[%clk 0:02:48.1]}
11... Be7 {[%clk 0:02:46.9]} 12. Be2 {[%clk 0:02:47.6]} 12... O-O {[%clk
0:02:45.9]} 13. O-O {[%clk 0:02:47.3]} 13... Qd8 {[%clk 0:02:44.2]} 14. b3
{[%clk 0:02:42.8]} 14... b5 {[%clk 0:02:43.2]} 15. b4 {[%clk 0:02:34.1]} 15...
a5 {[%clk 0:02:37.6]} 16. a3 {[%clk 0:02:34]} 16... Qb6 {[%clk 0:02:27.2]} 17.
Nxe4 {[%clk 0:02:33.5]} 17... Bxe4 {[%clk 0:02:25.7]} 18. Nd2 {[%clk 0:02:33.5]}
18... Bg6 {[%clk 0:02:23.5]} 19. Bf3 {[%clk 0:02:31.7]} 19... Bd3 {[%clk
0:02:20.1]} 20. Re1 {[%clk 0:02:31.6]} 20... f5 {[%clk 0:02:18.3]} 21. Be2
{[%clk 0:02:17.1]} 21... Bxe2 {[%clk 0:02:16.9]} 22. Rxe2 {[%clk 0:02:17.5]}
22... Ra6 {[%clk 0:02:15.8]} 23. Nf3 {[%clk 0:02:16.6]} 23... Rfa8 {[%clk
0:02:13.1]} 24. Rb1 {[%clk 0:02:13.7]} 24... axb4 {[%clk 0:02:10.4]} 25. axb4
{[%clk 0:02:13.4]} 25... Ra2 {[%clk 0:02:09.8]} 26. Rxa2 {[%clk 0:02:11.6]}
26... Rxa2 {[%clk 0:02:10.3]} 27. Rb2 {[%clk 0:02:11.8]} 27... Ra3 {[%clk
0:01:58.7]} 28. Rc2 {[%clk 0:02:05.3]} 28... Qa6 {[%clk 0:01:53.2]} 29. Kh2
{[%clk 0:02:03.4]} 29... Bxb4 {[%clk 0:01:44.9]} 30. cxb4 {[%clk 0:02:00.5]}
30... Nxb4 {[%clk 0:01:45.8]} 31. Re2 {[%clk 0:01:52.4]} 31... Nd3 {[%clk
0:01:42.9]} 32. Qd2 {[%clk 0:01:40.9]} 32... b4 {[%clk 0:01:36.1]} 33. Ne5
{[%clk 0:01:37.8]} 33... Nxe5 {[%clk 0:01:33]} 34. dxe5 {[%clk 0:01:33.9]} 34...
c3 {[%clk 0:01:31.1]} 35. Qd1 {[%clk 0:01:25.5]} 35... b3 {[%clk 0:01:17.8]} 36.
e4 {[%clk 0:01:25.2]} 36... fxe4 {[%clk 0:01:09.3]} 37. Re3 {[%clk 0:01:24.7]}
37... b2 {[%clk 0:00:58.2]} 38. Rg3 {[%clk 0:01:21.3]} 38... Qb7 {[%clk
0:00:30.5]} 39. Qg4 {[%clk 0:01:12.2]} 39... b1=Q {[%clk 0:00:26.7]} 40. Qxe6+
{[%clk 0:01:11.5]} 40... Qf7 {[%clk 0:00:23.9]} 41. Qc8+ {[%clk 0:01:10.9]}
41... Kh7 {[%clk 0:00:22.6]} 42. Be3 {[%clk 0:00:50.6]} 42... Ra1 {[%clk
0:00:20.6]} 43. Rg4 {[%clk 0:00:44.8]} 43... Qh1+ {[%clk 0:00:20.4]} 44. Kg3
{[%clk 0:00:44.8]} 44... Rg1 {[%clk 0:00:20.9]} 45. Kh4 {[%clk 0:00:35.1]} 45...
Rxg2 {[%clk 0:00:15.7]} 46. Rxg2 {[%clk 0:00:28.1]} 46... Qxg2 {[%clk
0:00:16.5]} 47. Qg4 {[%clk 0:00:28.4]} 47... g5+ {[%clk 0:00:14.9]} 48. Bxg5
{[%clk 0:00:28.5]} 48... hxg5+ {[%clk 0:00:14]} 49. Kxg5 {[%clk 0:00:29]} 49...
Qxg4+ {[%clk 0:00:13]} 50. Kxg4 {[%clk 0:00:28.5]} 50... c2 {[%clk 0:00:13.6]}
51. e6 {[%clk 0:00:28.6]} 51... Qxe6+ {[%clk 0:00:13.4]} 52. Kf4 {[%clk
0:00:29.1]} 52... c1=Q+ {[%clk 0:00:14.3]} 53. Kg3 {[%clk 0:00:27.8]} 53... Qg1+
{[%clk 0:00:14.7]} 54. Kh4 {[%clk 0:00:27.5]} 54... Qh6# {[%clk 0:00:14]} 0-1

[Event "*** Titled Tuesday Blitz"]
[Site "Chess.com"]
[Date "2020.04.07"]
[Round "2"]
[White "adiosabu"]
[Black "vizumatv4hoda"]
[Result "1/2-1/2"]
[WhiteElo "2507"]
[BlackElo "2732"]
[TimeControl "180+1"]
[EndTime "13:20:06 PDT"]
[Termination "Game drawn by repetition"]

1. e4 {[%clk 0:03:00.9]} 1... c5 {[%clk 0:02:54.8]} 2. Nf3 {[%clk 0:03:00.7]}
2... g6 {[%clk 0:02:54.8]} 3. d4 {[%clk 0:03:00.1]} 3... Bg7 {[%clk 0:02:55.7]}
4. dxc5 {[%clk 0:02:59.3]} 4... Qa5+ {[%clk 0:02:55.4]} 5. c3 {[%clk 0:02:59.7]}
5... Qxc5 {[%clk 0:02:55.6]} 6. Be3 {[%clk 0:03:00.2]} 6... Qc7 {[%clk
0:02:55.2]} 7. Na3 {[%clk 0:03:00.5]} 7... Nf6 {[%clk 0:02:53.6]} 8. e5 {[%clk
0:02:47.3]} 8... Ng4 {[%clk 0:02:53]} 9. Nb5 {[%clk 0:02:46]} 9... Qa5 {[%clk
0:02:47.4]} 10. Qd5 {[%clk 0:02:36.5]} 10... O-O {[%clk 0:02:43.3]} 11. Bf4
{[%clk 0:02:08.2]} 11... a6 {[%clk 0:02:39]} 12. b4 {[%clk 0:02:07.7]} 12... Qb6
{[%clk 0:02:37.2]} 13. Nbd4 {[%clk 0:02:04.5]} 13... d6 {[%clk 0:02:37.5]} 14.
h3 {[%clk 0:01:45.6]} 14... Nxe5 {[%clk 0:02:32.3]} 15. Nxe5 {[%clk 0:01:43.9]}
15... dxe5 {[%clk 0:02:33.2]} 16. Bxe5 {[%clk 0:01:40.7]} 16... Bxe5 {[%clk
0:02:33]} 17. Qxe5 {[%clk 0:01:40.3]} 17... Nc6 {[%clk 0:02:33.6]} 18. Nxc6
{[%clk 0:01:38.9]} 18... Qxc6 {[%clk 0:02:34.5]} 19. Qg3 {[%clk 0:01:29.3]}
19... Rd8 {[%clk 0:02:34]} 20. Be2 {[%clk 0:01:27.6]} 20... Be6 {[%clk
0:02:32.3]} 21. O-O {[%clk 0:01:26.7]} 21... Rac8 {[%clk 0:02:32.4]} 22. Rfc1
{[%clk 0:01:23.1]} 22... Rd2 {[%clk 0:02:28.9]} 23. Qe3 {[%clk 0:01:21.4]} 23...
Qd6 {[%clk 0:02:22.9]} 24. Rd1 {[%clk 0:01:16.1]} 24... Rd8 {[%clk 0:02:23]} 25.
Rxd2 {[%clk 0:01:11.8]} 25... Qxd2 {[%clk 0:02:23.9]} 26. Rd1 {[%clk 0:01:11.4]}
26... Qxd1+ {[%clk 0:02:24.3]} 27. Bxd1 {[%clk 0:01:11.1]} 27... Rxd1+ {[%clk
0:02:25.2]} 28. Kh2 {[%clk 0:01:11.4]} 28... b5 {[%clk 0:02:15.1]} 29. Qa7
{[%clk 0:01:07.2]} 29... Bxa2 {[%clk 0:02:15.6]} 30. Qxe7 {[%clk 0:00:57.2]}
30... Bc4 {[%clk 0:02:15.1]} 31. Qb7 {[%clk 0:00:54.3]} 31... Rd2 {[%clk
0:02:13.5]} 32. Kg3 {[%clk 0:00:44.4]} 32... h5 {[%clk 0:02:00.5]} 33. h4 {[%clk
0:00:41.8]} 33... Rd3+ {[%clk 0:01:56]} 34. f3 {[%clk 0:00:41.3]} 34... Rxc3
{[%clk 0:01:53.3]} 35. Qxa6 {[%clk 0:00:35.9]} 35... Rb3 {[%clk 0:01:54.2]} 36.
Qd6 {[%clk 0:00:34.2]} 36... Kh7 {[%clk 0:01:54.2]} 37. Kf4 {[%clk 0:00:32.5]}
37... Rd3 {[%clk 0:01:52.2]} 38. Qe7 {[%clk 0:00:27.2]} 38... Rd4+ {[%clk
0:01:49.8]} 39. Ke3 {[%clk 0:00:24.2]} 39... Rd1 {[%clk 0:01:49.9]} 40. Qc7
{[%clk 0:00:20.2]} 40... Rd3+ {[%clk 0:01:48.4]} 41. Kf4 {[%clk 0:00:19.8]}
41... Rd4+ {[%clk 0:01:47.3]} 42. Kg5 {[%clk 0:00:18.9]} 42... Rd2 {[%clk
0:01:43.9]} 43. g4 {[%clk 0:00:18.3]} 43... hxg4 {[%clk 0:01:43.2]} 44. fxg4
{[%clk 0:00:18.4]} 44... Rd5+ {[%clk 0:01:36.9]} 45. Kf6 {[%clk 0:00:18.2]}
45... Rd4 {[%clk 0:01:37.8]} 46. Qc8 {[%clk 0:00:14.3]} 46... Re4 {[%clk
0:01:31.5]} 47. h5 {[%clk 0:00:12.3]} 47... Re6+ {[%clk 0:01:31.8]} 48. Kg5
{[%clk 0:00:11.9]} 48... gxh5 {[%clk 0:01:31.8]} 49. gxh5 {[%clk 0:00:10.4]}
49... Re5+ {[%clk 0:01:22.9]} 50. Kh4 {[%clk 0:00:10.4]} 50... Re4+ {[%clk
0:01:19.7]} 51. Kg5 {[%clk 0:00:09.8]} 51... Be6 {[%clk 0:01:20]} 52. Qc5 {[%clk
0:00:07.6]} 52... Rg4+ {[%clk 0:01:17.4]} 53. Kf6 {[%clk 0:00:07.1]} 53... Rf4+
{[%clk 0:01:18.3]} 54. Ke7 {[%clk 0:00:07.3]} 54... Rf5 {[%clk 0:01:17.9]} 55.
Qg1 {[%clk 0:00:06.1]} 55... Kh6 {[%clk 0:01:10.8]} 56. Qg3 {[%clk 0:00:03.4]}
56... Kxh5 {[%clk 0:01:09.7]} 57. Qh3+ {[%clk 0:00:02.3]} 57... Kg5 {[%clk
0:01:10.6]} 58. Qg3+ {[%clk 0:00:02.6]} 58... Kh5 {[%clk 0:01:10.6]} 59. Qh3+
{[%clk 0:00:02.9]} 59... Kg6 {[%clk 0:01:10.5]} 60. Qg3+ {[%clk 0:00:03.3]}
60... Rg5 {[%clk 0:01:09.6]} 61. Qd3+ {[%clk 0:00:03.7]} 61... Kh5 {[%clk
0:01:05.3]} 62. Qf3+ {[%clk 0:00:03.1]} 62... Kh4 {[%clk 0:01:01.4]} 63. Qf4+
{[%clk 0:00:02.8]} 63... Rg4 {[%clk 0:00:54]} 64. Qh2+ {[%clk 0:00:03.2]} 64...
Kg5 {[%clk 0:00:54.6]} 65. Qe5+ {[%clk 0:00:03.4]} 65... Kh4 {[%clk 0:00:54.4]}
66. Qh2+ {[%clk 0:00:03.1]} 66... Kg5 {[%clk 0:00:53.9]} 67. Qe5+ {[%clk
0:00:03.4]} 67... Kh4 {[%clk 0:00:54]} 68. Qh2+ {[%clk 0:00:02.9]} 1/2-1/2

[Event "*** Titled Tuesday Blitz"]
[Site "Chess.com"]
[Date "2020.04.07"]
[Round "2"]
[White "CyberneticLion"]
[Black "Orange_Ghost"]
[Result "0-1"]
[WhiteElo "2508"]
[BlackElo "2752"]
[TimeControl "180+1"]
[EndTime "13:20:09 PDT"]
[Termination "Orange_Ghost won by resignation"]

1. d4 {[%clk 0:03:00.9]} 1... Nf6 {[%clk 0:02:59.7]} 2. Bf4 {[%clk 0:03:01]}
2... g6 {[%clk 0:02:57.7]} 3. Nc3 {[%clk 0:03:00]} 3... d5 {[%clk 0:02:55.8]} 4.
e3 {[%clk 0:02:59.4]} 4... Bg7 {[%clk 0:02:55.6]} 5. h4 {[%clk 0:02:56.1]} 5...
h5 {[%clk 0:02:35.6]} 6. Nf3 {[%clk 0:02:54.9]} 6... Bf5 {[%clk 0:02:29.7]} 7.
Be2 {[%clk 0:02:40.5]} 7... c6 {[%clk 0:02:15.8]} 8. Ne5 {[%clk 0:02:35.7]} 8...
Nbd7 {[%clk 0:02:09.9]} 9. Qd2 {[%clk 0:02:28.6]} 9... Rc8 {[%clk 0:01:57.6]}
10. f3 {[%clk 0:02:06.1]} 10... b5 {[%clk 0:01:44]} 11. a3 {[%clk 0:02:01.4]}
11... a5 {[%clk 0:01:23.1]} 12. O-O {[%clk 0:01:35.7]} 12... Nb6 {[%clk
0:01:01.4]} 13. b3 {[%clk 0:01:29.6]} 13... O-O {[%clk 0:00:56.7]} 14. Bd3
{[%clk 0:01:08.2]} 14... Bxd3 {[%clk 0:00:52.8]} 15. Nxd3 {[%clk 0:01:06.7]}
15... Nfd7 {[%clk 0:00:48.6]} 16. Ne5 {[%clk 0:01:01.7]} 16... Nxe5 {[%clk
0:00:39.8]} 17. Bxe5 {[%clk 0:01:02.6]} 17... e6 {[%clk 0:00:31.6]} 18. Bxg7
{[%clk 0:00:57.4]} 18... Kxg7 {[%clk 0:00:32.5]} 19. g3 {[%clk 0:00:56.6]} 19...
Ra8 {[%clk 0:00:31.3]} 20. a4 {[%clk 0:00:50.6]} 20... Qd6 {[%clk 0:00:26.3]}
21. Ne2 {[%clk 0:00:48.1]} 21... bxa4 {[%clk 0:00:24.2]} 22. bxa4 {[%clk
0:00:44.8]} 22... Nc4 {[%clk 0:00:24.7]} 23. Qc3 {[%clk 0:00:40.2]} 23... Rfb8
{[%clk 0:00:24.6]} 24. e4 {[%clk 0:00:40.3]} 24... Rb4 {[%clk 0:00:21.7]} 25. e5
{[%clk 0:00:40]} 25... Qb8 {[%clk 0:00:20.6]} 26. Kh2 {[%clk 0:00:27.1]} 26...
Qb6 {[%clk 0:00:20.5]} 27. f4 {[%clk 0:00:25.3]} 27... Rb8 {[%clk 0:00:19.8]}
28. Qd3 {[%clk 0:00:22.9]} 28... Nb2 {[%clk 0:00:18.6]} 29. Qf3 {[%clk
0:00:18.2]} 29... Nc4 {[%clk 0:00:18.2]} 30. Rfc1 {[%clk 0:00:15.4]} 30... Rb2
{[%clk 0:00:16.3]} 31. g4 {[%clk 0:00:15.3]} 31... hxg4 {[%clk 0:00:14.6]} 32.
Qxg4 {[%clk 0:00:16.2]} 32... Rh8 {[%clk 0:00:15]} 33. Qg5 {[%clk 0:00:16.6]}
33... Qd8 {[%clk 0:00:14.2]} 34. Kg3 {[%clk 0:00:16.8]} 34... Nd2 {[%clk
0:00:13.5]} 35. Nc3 {[%clk 0:00:13.5]} 35... Rb4 {[%clk 0:00:11]} 36. Rh1 {[%clk
0:00:10.3]} 36... Rxd4 {[%clk 0:00:09.6]} 37. Rad1 {[%clk 0:00:08.7]} 37... Rc4
{[%clk 0:00:07.2]} 38. Rxd2 {[%clk 0:00:05]} 38... Rxc3+ {[%clk 0:00:07.3]} 39.
Kg2 {[%clk 0:00:05.2]} 39... Qxg5+ {[%clk 0:00:07.7]} 40. fxg5 {[%clk
0:00:04.9]} 40... Rc4 {[%clk 0:00:08.3]} 41. Rf1 {[%clk 0:00:04.6]} 41... Rhxh4
{[%clk 0:00:07.4]} 42. Rdf2 {[%clk 0:00:04]} 42... Rcg4+ {[%clk 0:00:07.6]} 43.
Kf3 {[%clk 0:00:04.3]} 43... Rf4+ {[%clk 0:00:07.8]} 44. Kg3 {[%clk 0:00:03.5]}
44... Rhg4+ {[%clk 0:00:07.7]} 45. Kh3 {[%clk 0:00:03.2]} 45... Rxf2 {[%clk
0:00:08.6]} 46. Rxf2 {[%clk 0:00:04]} 46... Rxa4 {[%clk 0:00:07.8]} 47. Rf3
{[%clk 0:00:04.3]} 47... Rc4 {[%clk 0:00:07.7]} 48. Ra3 {[%clk 0:00:04.3]} 48...
a4 {[%clk 0:00:07.7]} 49. Kg3 {[%clk 0:00:04]} 49... c5 {[%clk 0:00:08.1]} 50.
Kf3 {[%clk 0:00:03.9]} 50... Kf8 {[%clk 0:00:08]} 51. Ke3 {[%clk 0:00:03.8]}
51... Ke7 {[%clk 0:00:08.5]} 52. Kd3 {[%clk 0:00:04.2]} 52... Rg4 {[%clk
0:00:08.6]} 53. Ra1 {[%clk 0:00:03.9]} 53... Kf8 {[%clk 0:00:08.3]} 54. Ra2
{[%clk 0:00:03.2]} 54... Kg7 {[%clk 0:00:08.6]} 55. Ra1 {[%clk 0:00:03.4]} 55...
a3 {[%clk 0:00:08.2]} 56. c3 {[%clk 0:00:01.9]} 56... Rg3+ {[%clk 0:00:07.3]}
0-1

[Event "*** Titled Tuesday Blitz"]
[Site "Chess.com"]
[Date "2020.04.07"]
[Round "2"]
[White "Sajkochess"]
[Black "anesar92"]
[Result "0-1"]
[WhiteElo "2352"]
[BlackElo "2728"]
[TimeControl "180+1"]
[EndTime "13:20:09 PDT"]
[Termination "anesar92 won by resignation"]

1. e4 {[%clk 0:03:00.9]} 1... c5 {[%clk 0:02:54.2]} 2. Nf3 {[%clk 0:03:01]} 2...
d6 {[%clk 0:02:54.8]} 3. d4 {[%clk 0:03:01.4]} 3... cxd4 {[%clk 0:02:55.7]} 4.
Nxd4 {[%clk 0:03:02.3]} 4... Nf6 {[%clk 0:02:56.2]} 5. Nc3 {[%clk 0:03:02.9]}
5... Nc6 {[%clk 0:02:56.8]} 6. g3 {[%clk 0:03:02.9]} 6... g6 {[%clk 0:02:55.9]}
7. Nde2 {[%clk 0:03:02.5]} 7... Bg7 {[%clk 0:02:53.1]} 8. Bg2 {[%clk 0:03:03]}
8... O-O {[%clk 0:02:53.7]} 9. O-O {[%clk 0:03:03.6]} 9... Rb8 {[%clk
0:02:54.6]} 10. a4 {[%clk 0:03:02.2]} 10... a6 {[%clk 0:02:52.5]} 11. h3 {[%clk
0:03:02]} 11... b5 {[%clk 0:02:51.1]} 12. axb5 {[%clk 0:03:02.6]} 12... axb5
{[%clk 0:02:52]} 13. Nd5 {[%clk 0:03:03]} 13... Nd7 {[%clk 0:02:51.6]} 14. c3
{[%clk 0:03:02.7]} 14... b4 {[%clk 0:02:50.9]} 15. Nd4 {[%clk 0:03:02.4]} 15...
Nxd4 {[%clk 0:02:44.3]} 16. cxd4 {[%clk 0:03:03.3]} 16... e6 {[%clk 0:02:44.6]}
17. Ne3 {[%clk 0:03:03.1]} 17... Qb6 {[%clk 0:02:43.7]} 18. Nc4 {[%clk
0:03:03.5]} 18... Qxd4 {[%clk 0:02:42]} 19. Nxd6 {[%clk 0:03:02.6]} 19... Nc5
{[%clk 0:02:41.5]} 20. Be3 {[%clk 0:03:01.6]} 20... Qxd1 {[%clk 0:02:36.4]} 21.
Rfxd1 {[%clk 0:02:58.4]} 21... Nb7 {[%clk 0:02:28.9]} 22. e5 {[%clk 0:02:04]}
22... Bxe5 {[%clk 0:02:13.4]} 23. Nxc8 {[%clk 0:01:52.2]} 23... Rfxc8 {[%clk
0:02:14.3]} 24. Ba7 {[%clk 0:01:47.4]} 24... Bxb2 {[%clk 0:02:14.1]} 25. Rab1
{[%clk 0:01:32.3]} 25... Bc3 {[%clk 0:02:13.5]} 26. Bxb8 {[%clk 0:01:23]} 26...
Rxb8 {[%clk 0:02:14.4]} 27. Rdc1 {[%clk 0:01:20]} 27... Kg7 {[%clk 0:02:02.8]}
28. Kf1 {[%clk 0:01:03]} 28... Nc5 {[%clk 0:01:57.3]} 29. Ke2 {[%clk 0:00:56.8]}
29... Rd8 {[%clk 0:01:51.6]} 30. Rc2 {[%clk 0:00:49.6]} 30... e5 {[%clk
0:01:42.3]} 31. Rbc1 {[%clk 0:00:32.3]} 31... Nb3 {[%clk 0:01:36.6]} 32. Rxc3
{[%clk 0:00:24.8]} 32... Nd4+ {[%clk 0:01:29.2]} 33. Ke3 {[%clk 0:00:23.7]}
33... bxc3 {[%clk 0:01:29]} 34. Rxc3 {[%clk 0:00:23.3]} 34... Nf5+ {[%clk
0:01:25.9]} 35. Ke2 {[%clk 0:00:23]} 35... Rd7 {[%clk 0:01:24.6]} 36. Rc5 {[%clk
0:00:20.3]} 36... Kf6 {[%clk 0:01:22]} 37. Be4 {[%clk 0:00:19.3]} 37... Nd4+
{[%clk 0:01:19.9]} 38. Ke3 {[%clk 0:00:19.6]} 38... Ne6 {[%clk 0:01:19.8]} 39.
Rc6 {[%clk 0:00:19.3]} 39... Ke7 {[%clk 0:01:18.9]} 40. h4 {[%clk 0:00:19.2]}
40... Ra7 {[%clk 0:01:17]} 41. Rc3 {[%clk 0:00:18]} 41... Nd4 {[%clk 0:01:11.8]}
42. f4 {[%clk 0:00:16.1]} 42... Nb5 {[%clk 0:01:03.3]} 43. Rb3 {[%clk
0:00:15.3]} 43... exf4+ {[%clk 0:01:03.4]} 44. Kxf4 {[%clk 0:00:14.8]} 44... Nd6
{[%clk 0:01:04]} 45. Bd5 {[%clk 0:00:14.2]} 45... Ra4+ {[%clk 0:01:03]} 46. Kf3
{[%clk 0:00:14.2]} 46... Kf6 {[%clk 0:01:03]} 47. Bc6 {[%clk 0:00:12.6]} 47...
Rc4 {[%clk 0:00:59.3]} 48. Bd5 {[%clk 0:00:12.8]} 48... Rc5 {[%clk 0:00:59.4]}
49. Rd3 {[%clk 0:00:11.7]} 49... Ke5 {[%clk 0:00:56.1]} 50. Bb3 {[%clk
0:00:11.8]} 50... f5 {[%clk 0:00:53.5]} 51. Re3+ {[%clk 0:00:11.8]} 51... Ne4
{[%clk 0:00:53.5]} 52. Rd3 {[%clk 0:00:12.1]} 52... h6 {[%clk 0:00:51.9]} 53.
Bg8 {[%clk 0:00:12]} 53... g5 {[%clk 0:00:50.3]} 54. hxg5 {[%clk 0:00:12.4]}
54... hxg5 {[%clk 0:00:51.2]} 55. Bh7 {[%clk 0:00:12.9]} 55... Rc2 {[%clk
0:00:43.2]} 56. Bxf5 {[%clk 0:00:10.3]} 56... Rf2+ {[%clk 0:00:42.4]} 57. Kg4
{[%clk 0:00:10.5]} 57... Rxf5 {[%clk 0:00:39.8]} 58. Rd5+ {[%clk 0:00:10.7]}
58... Kxd5 {[%clk 0:00:39.9]} 59. Kxf5 {[%clk 0:00:11.3]} 59... Kd4 {[%clk
0:00:40.5]} 60. g4 {[%clk 0:00:11.7]} 60... Ke3 {[%clk 0:00:40.2]} 61. Ke5
{[%clk 0:00:12.1]} 61... Kf3 {[%clk 0:00:39]} 62. Kf5 {[%clk 0:00:12.5]} 62...
Kg3 {[%clk 0:00:39.3]} 63. Kxe4 {[%clk 0:00:12.9]} 63... Kxg4 {[%clk 0:00:40.2]}
64. Ke3 {[%clk 0:00:13.5]} 64... Kg3 {[%clk 0:00:40.5]} 65. Ke2 {[%clk
0:00:12.7]} 65... g4 {[%clk 0:00:40.8]} 66. Kf1 {[%clk 0:00:12.8]} 66... Kh2
{[%clk 0:00:41.7]} 67. Kf2 {[%clk 0:00:13.1]} 67... g3+ {[%clk 0:00:42.6]} 0-1